fUSD/lending_fUSD_20240403
["ID","MTS","AMOUNT","RATE_DAILY","PERIOD"]
[321427394,1712182311715,-500.0,0.00055342,120]
[321427395,1712182311725,-500.0,0.00055342,120]
[321427396,1712182311735,-500.0,0.00055342,2]
[321427397,1712182311744,-500.0,0.00055342,120]
[321427398,1712182311754,-500.0,0.00055342,120]
[321427399,1712182311764,-517.37775507,0.00055342,120]
[321427400,1712182311774,-500.0,0.00055342,120]
[321427401,1712182311784,-500.0,0.00055342,120]
[321427402,1712182311793,-500.0,0.00055342,120]
[321427403,1712182311803,-405.49801673,0.00055342,120]
[321427404,1712182311812,-500.0,0.00055342,120]
[321427405,1712182311821,-500.0,0.00055342,120]
[321427406,1712182311831,-500.0,0.00055342,120]
[321427407,1712182311841,-234.05099735,0.00055342,120]
[321427408,1712182311850,-641.32,0.00055342,120]
[321427409,1712182311859,-500.0,0.00055342,120]
[321427410,1712182311868,-500.0,0.00055342,120]
[321427411,1712182311877,-500.0,0.00055342,120]
[321427412,1712182311887,-523.71786216,0.00055342,120]
[321427413,1712182311895,-500.0,0.00055342,120]
[321427414,1712182311905,-516.63261091,0.00055342,120]
[321427415,1712182311913,-500.0,0.00055342,120]
[321427416,1712182311922,-500.0,0.00055342,120]
[321427417,1712182311932,-500.0,0.00055342,120]
[321427418,1712182311941,-500.0,0.00055342,120]
[321427419,1712182311950,-541.71034981,0.00055342,120]
[321427420,1712182311959,-941.5,0.00055342,120]
[321427421,1712182311969,-500.0,0.00055342,120]
[321427422,1712182311979,-500.0,0.00055342,120]
[321427423,1712182311989,-500.0,0.00055342,120]
[321427424,1712182311999,-500.0,0.00055342,120]
[321427425,1712182312009,-316.83021274,0.00055342,120]
[321427426,1712182312019,-500.0,0.00055342,120]
[321427427,1712182312030,-500.0,0.00055342,120]
[321427428,1712182312040,-531.76,0.00055342,120]
[321427429,1712182312049,-500.0,0.00055342,120]
[321427430,1712182312059,-751.45,0.00055342,120]
[321427431,1712182312068,-500.0,0.00055342,120]
[321427432,1712182312078,-500.0,0.00055342,120]
[321427433,1712182312088,-500.0,0.00055342,120]
[321427434,1712182312098,-543.06843911,0.00055342,120]
[321427435,1712182312108,-500.0,0.00055342,120]
[321427436,1712182312119,-500.0,0.00055342,120]
[321427437,1712182312129,-500.0,0.00055342,120]
[321427438,1712182312140,-500.0,0.00055342,120]
[321427439,1712182312150,-541.17847319,0.00055342,120]
[321427440,1712182312161,-500.0,0.00055342,120]
[321427441,1712182312171,-500.0,0.00055342,120]
[321427442,1712182312181,-809.69,0.00055342,120]
[321427443,1712182312191,-658.04,0.00055342,120]
[321427444,1712182312202,-734.72,0.00055342,120]
[321427445,1712182312212,-500.0,0.00055342,120]
[321427446,1712182312222,-500.0,0.00055342,120]
[321427447,1712182312234,-854.0,0.00055342,120]
[321427448,1712182312244,-500.0,0.00055342,120]
[321427449,1712182312254,-500.0,0.00055342,120]
[321427450,1712182312265,-500.0,0.00055342,120]
[321427451,1712182312276,-500.0,0.00055342,120]
[321427452,1712182312286,-500.0,0.00055342,120]
[321427453,1712182312297,-500.0,0.00055342,120]
[321427454,1712182312309,-612.67210663,0.00055342,120]
[321427455,1712182312320,-500.0,0.00055342,120]
[321427456,1712182312331,-675.44,0.00055342,120]
[321427457,1712182312342,-585.36,0.00055342,120]
[321427458,1712182312352,-500.0,0.00055342,120]
[321427459,1712182312362,-500.0,0.00055342,120]
[321427460,1712182312373,-500.0,0.00055342,120]
[321427461,1712182312383,-500.0,0.00055342,120]
[321427462,1712182312394,-500.0,0.00055342,120]
[321427463,1712182312405,-500.0,0.00055342,120]
[321427464,1712182312415,-500.0,0.00055342,120]
[321427465,1712182312426,-500.0,0.00055342,120]
[321427466,1712182312436,-500.0,0.00055342,120]
[321427467,1712182312446,-500.0,0.00055342,120]
[321427468,1712182312456,-500.0,0.00055342,120]
[321427469,1712182312466,-500.0,0.00055342,120]
[321427470,1712182312476,-500.0,0.00055342,120]
[321427471,1712182312486,-500.0,0.00055342,120]
[321427472,1712182312495,-600.0,0.00055342,2]
[321427473,1712182312505,-1657.99,0.00055342,30]
[321427474,1712182312514,-500.0,0.00055342,120]
[321427475,1712182312525,-443.63509977,0.00055342,120]
[321427476,1712182312534,-835.03,0.00055342,120]
[321427477,1712182312544,-502.77936174,0.00055342,120]
[321427478,1712182312554,-500.0,0.00055342,120]
[321427479,1712182312564,-500.0,0.00055342,120]
[321427480,1712182312574,-749.89,0.00055342,120]
[321427481,1712182312584,-500.0,0.00055342,120]
[321427482,1712182312593,-539.18,0.00055342,120]
[321427483,1712182312607,-500.0,0.00055342,120]
[321427484,1712182312617,-505.87291856,0.00055342,120]
[321427485,1712182312628,-500.0,0.00055342,120]
[321427486,1712182312638,-1985.0,0.00055342,120]
[321427487,1712182312649,-500.0,0.00055342,120]
[321427488,1712182312659,-500.0,0.00055342,120]
[321427489,1712182312669,-553.00795717,0.00055342,120]
[321427490,1712182312680,-500.0,0.00055342,120]
[321427491,1712182312690,-500.0,0.00055342,120]
[321427492,1712182312699,-1220.51,0.00055342,120]
[321427493,1712182312709,-500.0,0.00055342,2]
[321427494,1712182312719,-508.64,0.00055342,120]
[321427495,1712182312729,-513.26544245,0.00055342,120]
[321427496,1712182312739,-511.24,0.00055342,120]
[321427497,1712182312748,-435.53494572,0.00055342,120]
[321427498,1712182312759,-633.42,0.00055342,120]
[321427499,1712182312769,-704.66,0.00055342,120]
[321427500,1712182312779,-1220.19,0.00055342,120]
[321427501,1712182312790,-659.49,0.00055342,120]
[321427502,1712182312800,-1673.95,0.00055342,120]
[321427503,1712182312811,-500.0,0.00055342,120]
[321427504,1712182312823,-516.54580543,0.00055342,120]
[321427505,1712182312836,-965.12,0.00055342,120]
[321427506,1712182312847,-935.91,0.00055342,120]
[321427507,1712182312858,-985.34,0.00055342,120]
[321427508,1712182312868,-625.0,0.00055342,120]
[321427509,1712182312878,-1009.55,0.00055342,120]
[321427510,1712182312888,-543.50166182,0.00055342,120]
[321427511,1712182312899,-544.04620936,0.00055342,120]
[321427512,1712182312909,-500.0,0.00055342,120]
[321427513,1712182312920,-705.27,0.00055342,120]
[321427514,1712182312931,-500.0,0.00055342,120]
[321427515,1712182312941,-500.0,0.00055342,120]
[321427516,1712182312952,-2000.0,0.00055342,30]
[321427517,1712182312961,-500.0,0.00055342,120]
[321427518,1712182312970,-1076.91,0.00055342,120]
[321427519,1712182312979,-1080.87,0.00055342,120]
[321427520,1712182312989,-500.0,0.00055342,120]
[321427521,1712182312999,-500.0,0.00055342,120]
[321427522,1712182313008,-500.0,0.00055342,120]
[321427523,1712182313018,-500.0,0.00055342,120]
[321427524,1712182313027,-500.0,0.00055342,120]
[321427525,1712182313037,-553.5,0.00055342,120]
[321427526,1712182313046,-884.75,0.00055342,120]
[321427527,1712182313055,-1000.0,0.00055342,30]
[321427528,1712182313064,-500.0,0.00055342,120]
[321427529,1712182313073,-500.0,0.00055342,120]
[321427530,1712182313083,-1092.2,0.00055342,120]
[321427531,1712182313092,-897.02,0.00055342,120]
[321427532,1712182313102,-500.0,0.00055342,120]
[321427533,1712182313113,-500.0,0.00055342,120]
[321427534,1712182313123,-500.0,0.00055342,120]
[321427535,1712182313133,-592.63,0.00055342,120]
[321427536,1712182313143,-854.62,0.00055342,120]
[321427537,1712182313153,-1215.43,0.00055342,120]
[321427538,1712182313163,-500.0,0.00055342,120]
[321427539,1712182313173,-2461.51,0.00055342,120]
[321427540,1712182313183,-500.0,0.00055342,120]
[321427541,1712182313194,-500.0,0.00055342,120]
[321427542,1712182313205,-500.0,0.00055342,120]
[321427543,1712182313215,-1220.58,0.00055342,120]
[321427544,1712182313225,-500.0,0.00055342,120]
[321427545,1712182313235,-590.49,0.00055342,120]
[321427546,1712182313245,-500.0,0.00055342,120]
[321427547,1712182313254,-500.0,0.00055342,120]
[321427548,1712182313263,-500.0,0.00055342,120]
[321427549,1712182313273,-500.0,0.00055342,120]
[321427550,1712182313283,-500.0,0.00055342,120]
[321427551,1712182313293,-865.98,0.00055342,120]
[321427552,1712182313303,-500.0,0.00055342,120]
[321427553,1712182313313,-500.0,0.00055342,120]
[321427554,1712182313323,-500.0,0.00055342,120]
[321427555,1712182313506,-636.23,0.00055342,80]
[321427556,1712182313546,-844.34,0.00055342,120]
[321427557,1712182313556,-500.0,0.00055342,120]
[321427558,1712182313566,-1064.18,0.00055342,120]
[321427559,1712182313576,-500.0,0.00055342,120]
[321427560,1712182313586,-500.0,0.00055342,120]
[321427561,1712182313596,-615.95530027,0.00055342,120]
[321427562,1712182313610,-647.6067647,0.00055342,120]
[321427563,1712182313619,-500.0,0.00055342,120]
[321427564,1712182313628,-500.0,0.00055342,120]
[321427565,1712182313638,-587.24195557,0.00055342,120]
[321427566,1712182313649,-511.4,0.00055342,120]
[321427567,1712182313658,-642.8,0.00055342,120]
[321427568,1712182313668,-982.66,0.00055342,120]
[321427569,1712182313679,-665.67,0.00055342,120]
[321427570,1712182313689,-1176.41,0.00055342,120]
[321427571,1712182313698,-500.0,0.00055342,120]
[321427572,1712182313708,-1058.87,0.00055342,120]
[321427573,1712182313718,-1691.43,0.00055342,120]
[321427574,1712182313727,-500.0,0.00055342,120]
[321427575,1712182313737,-520.77,0.00055342,120]
[321427576,1712182313746,-500.0,0.00055342,120]
[321427577,1712182313755,-649.8,0.00055342,120]
[321427578,1712182313764,-580.93,0.00055342,120]
[321427579,1712182313773,-880.91,0.00055342,120]
[321427580,1712182313782,-1053.04,0.00055342,120]
[321427581,1712182313791,-191.99127145,0.00055342,120]
[321427582,1712182313800,-500.0,0.00055342,120]
[321427583,1712182313810,-1494.41,0.00055342,120]
[321427584,1712182313819,-1559.55,0.00055342,120]
[321427585,1712182313828,-1338.73,0.00055342,120]
[321427586,1712182313838,-500.0,0.00055342,120]
[321427587,1712182313847,-715.45,0.00055342,120]
[321427588,1712182313855,-500.0,0.00055342,120]
[321427589,1712182313865,-1868.47,0.00055342,120]
[321427590,1712182313874,-301.57292008,0.00055342,120]
[321427591,1712182313883,-500.0,0.00055342,120]
[321427592,1712182313892,-1711.74,0.00055342,120]
[321427593,1712182313902,-776.16,0.00055342,120]
[321427594,1712182313911,-558.23,0.00055342,120]
[321427595,1712182313920,-500.0,0.00055342,120]
[321427596,1712182313929,-1058.42,0.00055342,120]
[321427597,1712182313938,-500.0,0.00055342,120]
[321427598,1712182313948,-1270.06,0.00055342,120]
[321427599,1712182313957,-2171.28,0.00055342,120]
[321427600,1712182313966,-500.0,0.00055342,120]
[321427601,1712182313975,-586.43,0.00055342,120]
[321427602,1712182313985,-222.02,0.00055342,120]
[321427603,1712182313995,-500.0,0.00055342,2]
[321427604,1712182314006,-500.0,0.00055342,120]
[321427605,1712182314016,-500.0,0.00055342,120]
[321427606,1712182314025,-518.78300264,0.00055342,120]
[321427607,1712182314035,-500.0,0.00055342,120]
[321427608,1712182314046,-500.0,0.00055342,120]
[321427609,1712182314056,-500.0,0.00055342,120]
[321427610,1712182314067,-519.53875635,0.00055342,120]
[321427611,1712182314077,-534.69927361,0.00055342,120]
[321427612,1712182314086,-970.61,0.00055342,120]
[321427613,1712182314096,-562.39,0.00055342,120]
[321427614,1712182314106,-292.91183872,0.00055342,120]
[321427615,1712182314116,-556.95,0.00055342,120]
[321427616,1712182314126,-500.0,0.00055342,120]
[321427617,1712182314135,-500.0,0.00055342,120]
[321427618,1712182314144,-500.0,0.00055342,120]
[321427619,1712182314154,-517.56,0.00055342,120]
[321427620,1712182314163,-1175.94,0.00055342,120]
[321427621,1712182314172,-1753.92,0.00055342,120]
[321427622,1712182314181,-500.0,0.00055342,120]
[321427623,1712182314190,-500.0,0.00055342,120]
[321427624,1712182314201,-593.44,0.00055342,120]
[321427625,1712182314210,-500.0,0.00055342,120]
[321427626,1712182314219,-892.45,0.00055342,120]
[321427627,1712182314229,-500.0,0.00055342,120]
[321427628,1712182314239,-326.19471645,0.00055342,120]
[321427629,1712182314248,-638.32,0.00055342,120]
[321427630,1712182314258,-1374.06,0.00055342,120]
[321427631,1712182314268,-500.0,0.00055342,120]
[321427632,1712182314278,-512.55979802,0.00055342,120]
[321427633,1712182314288,-925.28,0.00055342,120]
[321427634,1712182314298,-500.0,0.00055342,120]
[321427635,1712182314308,-653.27,0.00055342,120]
[321427636,1712182314318,-500.0,0.00055342,120]
[321427637,1712182314327,-500.0,0.00055342,120]
[321427638,1712182314337,-843.85,0.00055342,120]
[321427639,1712182314347,-500.0,0.00055342,120]
[321427640,1712182314356,-1248.45,0.00055342,120]
[321427641,1712182314365,-500.0,0.00055342,120]
[321427642,1712182314375,-510.27,0.00055342,120]
[321427643,1712182314385,-368.7515302,0.00055342,120]
[321427644,1712182314395,-500.0,0.00055342,120]
[321427645,1712182314404,-564.29,0.00055342,120]
[321427646,1712182314413,-500.0,0.00055342,120]
[321427647,1712182314423,-600.03096338,0.00055342,120]
[321427648,1712182314432,-613.92,0.00055342,120]
[321427649,1712182314442,-500.0,0.00055342,120]
[321427650,1712182314452,-831.31,0.00055342,120]
[321427651,1712182314461,-500.0,0.00055342,120]
[321427652,1712182314471,-500.0,0.00055342,120]
[321427653,1712182314480,-500.0,0.00055342,120]
[321427654,1712182314490,-1528.39,0.00055342,120]
[321427655,1712182314499,-820.25,0.00055342,120]
[321427656,1712182314509,-500.0,0.00055342,120]
[321427657,1712182314518,-500.0,0.00055342,120]
[321427658,1712182314527,-500.0,0.00055342,120]
[321427659,1712182314537,-675.22,0.00055342,120]
[321427660,1712182314546,-500.0,0.00055342,120]
[321427661,1712182314555,-500.0,0.00055342,120]
[321427662,1712182314565,-500.0,0.00055342,2]
[321427663,1712182314576,-808.59,0.00055342,120]
[321427664,1712182314586,-500.0,0.00055342,120]
[321427665,1712182314595,-500.0,0.00055342,120]
[321427666,1712182314610,-1000.0,0.00055342,120]
[321427667,1712182314619,-1387.24,0.00055342,120]
[321427668,1712182314628,-500.0,0.00055342,120]
[321427669,1712182314637,-500.0,0.00055342,120]
[321427670,1712182314649,-531.01,0.00055342,120]
[321427671,1712182314658,-1078.58,0.00055342,120]
[321427672,1712182314668,-500.0,0.00055342,120]
[321427673,1712182314678,-500.0,0.00055342,120]
[321427674,1712182314688,-500.0,0.00055342,120]
[321427675,1712182314697,-1259.94,0.00055342,120]
[321427676,1712182314708,-500.0,0.00055342,120]
[321427677,1712182314718,-500.0,0.00055342,120]
[321427678,1712182314727,-500.0,0.00055342,120]
[321427679,1712182314736,-500.0,0.00055342,120]
[321427680,1712182314745,-419.70240858,0.00055342,120]
[321427681,1712182314755,-1117.67,0.00055342,30]
[321427682,1712182314764,-1170.92,0.00055342,120]
[321427683,1712182314773,-631.43,0.00055342,120]
[321427684,1712182314783,-670.32,0.00055342,120]
[321427685,1712182314792,-500.0,0.00055342,120]
[321427686,1712182314802,-532.18,0.00055342,120]
[321427687,1712182314811,-500.0,0.00055342,120]
[321427688,1712182314820,-511.32265569,0.00055342,120]
[321427689,1712182314829,-1112.56,0.00055342,120]
[321427690,1712182314839,-531.23,0.00055342,120]
[321427691,1712182314848,-318.9757785,0.00055342,120]
[321427692,1712182314858,-500.0,0.00055342,120]
[321427693,1712182314868,-1288.29,0.00055342,120]
[321427694,1712182314878,-559.19,0.00055342,120]
[321427695,1712182314889,-1079.11,0.00055342,120]
[321427696,1712182314899,-500.0,0.00055342,120]
[321427697,1712182314909,-500.0,0.00055342,120]
[321427698,1712182314918,-500.0,0.00055342,120]
[321427699,1712182314927,-1135.01,0.00055342,120]
[321427700,1712182314936,-504.06551852,0.00055342,120]
[321427701,1712182314945,-500.0,0.00055342,120]
[321427702,1712182314956,-1543.8,0.00055342,120]
[321427703,1712182314966,-1677.54,0.00055342,120]
[321427704,1712182314975,-500.0,0.00055342,120]
[321427705,1712182314984,-500.0,0.00055342,120]
[321427706,1712182314994,-500.0,0.00055342,120]
[321427707,1712182315003,-541.85374349,0.00055342,120]
[321427708,1712182315014,-654.19,0.00055342,120]
[321427709,1712182315023,-500.0,0.00055342,120]
[321427710,1712182315032,-888.0,0.00055342,120]
[321427711,1712182315041,-555.42,0.00055342,120]
[321427712,1712182315051,-500.0,0.00055342,120]
[321427713,1712182315060,-500.0,0.00055342,120]
[321427714,1712182315070,-1012.65,0.00055342,120]
[321427715,1712182315079,-500.0,0.00055342,120]
[321427716,1712182315088,-536.99,0.00055342,120]
[321427717,1712182315098,-1149.21,0.00055342,120]
[321427718,1712182315108,-500.0,0.00055342,120]
[321427719,1712182315117,-500.0,0.00055342,120]
[321427720,1712182315126,-1227.92,0.00055342,120]
[321427721,1712182315135,-1196.34,0.00055342,120]
[321427722,1712182315144,-507.44976454,0.00055342,120]
[321427723,1712182315153,-718.8,0.00055342,120]
[321427724,1712182315162,-500.0,0.00055342,120]
[321427725,1712182315171,-500.0,0.00055342,120]
[321427726,1712182315180,-831.64,0.00055342,120]
[321427727,1712182315189,-1179.39,0.00055342,120]
[321427728,1712182315198,-500.0,0.00055342,120]
[321427729,1712182315208,-500.0,0.00055342,120]
[321427730,1712182315218,-500.0,0.00055342,120]
[321427731,1712182315227,-1166.52,0.00055342,120]
[321427732,1712182315237,-500.0,0.00055342,120]
[321427733,1712182315246,-150.0,0.00055342,120]
[321427734,1712182315255,-690.37,0.00055342,120]
[321427735,1712182315264,-500.0,0.00055342,120]
[321427736,1712182315273,-500.0,0.00055342,120]
[321427737,1712182315282,-500.0,0.00055342,120]
[321427738,1712182315292,-1258.58,0.00055342,120]
[321427739,1712182315301,-500.0,0.00055342,120]
[321427740,1712182315310,-906.33,0.00055342,120]
[321427741,1712182315319,-500.0,0.00055342,120]
[321427742,1712182315328,-500.0,0.00055342,120]
[321427743,1712182315338,-506.930914,0.00055342,120]
[321427744,1712182315347,-500.0,0.00055342,120]
[321427745,1712182315356,-1009.09,0.00055342,60]
[321427746,1712182315365,-500.0,0.00055342,120]
[321427747,1712182315375,-500.0,0.00055342,120]
[321427748,1712182315384,-989.68,0.00055342,120]
[321427749,1712182315393,-1515.14,0.00055342,120]
[321427750,1712182315403,-500.0,0.00055342,120]
[321427751,1712182315412,-1000.0,0.00055342,120]
[321427752,1712182315421,-500.0,0.00055342,120]
[321427753,1712182315431,-1077.9,0.00055342,120]
[321427754,1712182315441,-500.0,0.00055342,120]
[321427755,1712182315451,-500.0,0.00055342,120]
[321427756,1712182315461,-1326.32,0.00055342,120]
[321427757,1712182315470,-549.12,0.00055342,120]
[321427758,1712182315480,-500.0,0.00055342,120]
[321427759,1712182315489,-500.0,0.00055342,120]
[321427760,1712182315499,-876.14,0.00055342,120]
[321427761,1712182315508,-500.0,0.00055342,120]
[321427762,1712182315518,-1554.15,0.00055342,120]
[321427763,1712182315527,-500.0,0.00055342,120]
[321427764,1712182315537,-500.0,0.00055342,120]
[321427765,1712182315547,-500.0,0.00055342,120]
[321427766,1712182315557,-500.0,0.00055342,120]
[321427767,1712182315567,-500.0,0.00055342,120]
[321427768,1712182315576,-1275.42,0.00055342,120]
[321427769,1712182315586,-799.11,0.00055342,120]
[321427770,1712182315597,-547.80180094,0.00055342,120]
[321427771,1712182315609,-506.15344175,0.00055342,120]
[321427772,1712182315618,-672.33,0.00055342,120]
[321427773,1712182315627,-500.0,0.00055342,120]
[321427774,1712182315637,-500.0,0.00055342,120]
[321427775,1712182315646,-799.72,0.00055342,120]
[321427776,1712182315655,-857.91,0.00055342,120]
[321427777,1712182315665,-926.27,0.00055342,120]
[321427778,1712182315675,-500.0,0.00055342,120]
[321427779,1712182315686,-527.96105851,0.00055342,120]
[321427780,1712182315696,-500.0,0.00055342,120]
[321427781,1712182315706,-500.0,0.00055342,120]
[321427782,1712182315716,-1209.59,0.00055342,120]
[321427783,1712182315725,-500.0,0.00055342,120]
[321427784,1712182315735,-500.0,0.00055342,120]
[321427785,1712182315744,-500.0,0.00055342,120]
[321427786,1712182315754,-353.09196734,0.00055342,120]
[321427787,1712182315763,-500.0,0.00055342,120]
[321427788,1712182315772,-500.0,0.00055342,120]
[321427789,1712182315781,-500.0,0.00055342,120]
[321427790,1712182315791,-537.60220037,0.00055342,120]
[321427791,1712182315800,-559.74,0.00055342,120]
[321427792,1712182315809,-512.16,0.00055342,120]
[321427793,1712182315819,-342.29593361,0.00055342,120]
[321427794,1712182315828,-543.19870199,0.00055342,120]
[321427795,1712182315837,-500.0,0.00055342,120]
[321427796,1712182315846,-557.41760443,0.00055342,120]
[321427797,1712182315855,-1066.29,0.00055342,120]
[321427798,1712182315864,-946.54,0.00055342,120]
[321427799,1712182315874,-500.0,0.00055342,120]
[321427800,1712182315883,-936.38,0.00055342,120]
[321427801,1712182315892,-500.0,0.00055342,120]
[321427802,1712182315959,-500.0,0.00055342,120]
[321427803,1712182315968,-781.02,0.00055342,120]
[321427804,1712182315977,-500.0,0.00055342,120]
[321427805,1712182315986,-890.32,0.00055342,120]
[321427806,1712182315995,-506.8168125,0.00055342,120]
[321427807,1712182316004,-500.0,0.00055342,120]
[321427808,1712182316013,-209.14222267,0.00055342,120]
[321427809,1712182316022,-504.16810775,0.00055342,120]
[321427810,1712182316031,-500.0,0.00055342,120]
[321427811,1712182316039,-1291.22,0.00055342,120]
[321427812,1712182316048,-500.0,0.00055342,120]
[321427813,1712182316057,-638.4,0.00055342,120]
[321427814,1712182316066,-500.0,0.00055342,120]
[321427815,1712182316075,-500.0,0.00055342,120]
[321427816,1712182316084,-500.0,0.00055342,120]
[321427817,1712182316094,-500.0,0.00055342,120]
[321427818,1712182316103,-500.0,0.00055342,120]
[321427819,1712182316112,-500.0,0.00055342,120]
[321427820,1712182316121,-592.34,0.00055342,120]
[321427821,1712182316131,-500.0,0.00055342,120]
[321427822,1712182316140,-755.9,0.00055342,120]
[321427823,1712182316150,-10389.32,0.00055342,120]
[321427824,1712182316159,-500.0,0.00055342,120]
[321427825,1712182316168,-532.96643568,0.00055342,120]
[321427826,1712182316177,-643.86,0.00055342,120]
[321427827,1712182316186,-645.32,0.00055342,120]
[321427828,1712182316195,-587.31,0.00055342,120]
[321427829,1712182316205,-582.55,0.00055342,120]
[321427830,1712182316215,-500.0,0.00055342,120]
[321427831,1712182316224,-500.0,0.00055342,120]
[321427832,1712182316232,-500.0,0.00055342,120]
[321427833,1712182316241,-1073.35,0.00055342,120]
[321427834,1712182316250,-8464.65,0.00055342,120]
[321427835,1712182316259,-500.0,0.00055342,120]
[321427836,1712182316269,-500.0,0.00055342,120]
[321427837,1712182316279,-500.0,0.00055342,120]
[321427838,1712182316288,-792.67,0.00055342,120]
[321427839,1712182316297,-500.0,0.00055342,120]
[321427840,1712182316307,-500.0,0.00055342,120]
[321427841,1712182316316,-500.0,0.00055342,120]
[321427842,1712182316326,-169.20378909,0.00055342,120]
[321427843,1712182316335,-500.0,0.00055342,120]
[321427844,1712182316344,-497.670238,0.00055342,120]
[321427845,1712182316354,-574.24,0.00055342,120]
[321427846,1712182316362,-6759.44,0.00055342,120]
[321427847,1712182316371,-500.0,0.00055342,120]
[321427848,1712182316381,-2045.92,0.00055342,120]
[321427849,1712182316390,-500.0,0.00055342,120]
[321427850,1712182316399,-1189.01,0.00055342,120]
[321427851,1712182316409,-500.0,0.00055342,120]
[321427852,1712182316418,-500.0,0.00055342,120]
[321427853,1712182316427,-3000.0,0.00055342,120]
[321427854,1712182316436,-500.0,0.00055342,30]
[321427855,1712182316446,-736.57,0.00055342,120]
[321427856,1712182316455,-1026.27,0.00055342,120]
[321427857,1712182316464,-500.0,0.00055342,120]
[321427858,1712182316473,-500.0,0.00055342,120]
[321427859,1712182316483,-1008.12,0.00055342,120]
[321427860,1712182316492,-500.0,0.00055342,120]
[321427861,1712182316503,-5498.04,0.00055342,120]
[321427862,1712182316513,-500.0,0.00055342,120]
[321427863,1712182316522,-500.0,0.00055342,120]
[321427864,1712182316532,-500.0,0.00055342,120]
[321427865,1712182316542,-500.0,0.00055342,120]
[321427866,1712182316552,-905.59,0.00055342,2]
[321427867,1712182316561,-500.0,0.00055342,120]
[321427868,1712182316570,-651.77,0.00055342,120]
[321427869,1712182316579,-680.33,0.00055342,120]
[321427870,1712182316589,-625.04,0.00055342,120]
[321427871,1712182316599,-1318.99,0.00055342,120]
[321427872,1712182316610,-869.59,0.00055342,120]
[321427873,1712182316619,-500.0,0.00055342,120]
[321427874,1712182316628,-884.21,0.00055342,120]
[321427875,1712182316638,-569.176044,0.00055342,120]
[321427876,1712182316648,-16118.97,0.00055342,120]
[321427877,1712182316657,-500.0,0.00055342,120]
[321427878,1712182316666,-500.0,0.00055342,120]
[321427879,1712182316675,-4639.27,0.00055342,120]
[321427880,1712182316685,-543.94764327,0.00055342,120]
[321427881,1712182316694,-1510.17,0.00055342,120]
[321427882,1712182316703,-612.31,0.00055342,120]
[321427883,1712182316712,-5757.53,0.00055342,120]
[321427884,1712182316722,-500.0,0.00055342,120]
[321427885,1712182316731,-1665.67,0.00055342,120]
[321427886,1712182316740,-519.25,0.00055342,120]
[321427887,1712182316749,-1123.52,0.00055342,120]
[321427888,1712182316758,-1067.74,0.00055342,120]
[321427889,1712182316769,-1129.11,0.00055342,120]
[321427890,1712182316779,-500.0,0.00055342,120]
[321427891,1712182316789,-275.47400788,0.00055342,120]
[321427892,1712182316798,-820.77,0.00055342,120]
[321427893,1712182316807,-1482.99,0.00055342,120]